bitfinex/quotes_SOLUSD_20250818
["timestamp","ask_amount","ask_price","bid_price","bid_amount"]
[1755536955994,9.29858573,182.51,182.5,0.03]
[1755536956630,8.57858573,182.51,182.5,0.03]
[1755536957916,9.29858573,182.51,182.5,0.03]
[1755536958394,8.57858573,182.51,182.5,0.03]
[1755536960227,2.79183008,182.51,182.5,0.03]
[1755536967203,2.85183008,182.51,182.5,0.03]
[1755536967608,3.57183008,182.51,182.5,0.03]
[1755536968930,9.35858573,182.51,182.5,0.03]
[1755536969331,2.85183008,182.51,182.5,0.03]
[1755536969718,2.85183008,182.51,182.5,0.75]
[1755536970136,2.13183008,182.51,182.5,21.64297122]
[1755536970321,1e-08,182.51,182.5,21.64297122]
[1755536970544,1e-08,182.51,182.5,27.97767242]
[1755536970732,1e-08,182.51,182.5,27.42972722]
[1755536970936,1e-08,182.51,182.5,32.90917927]
[1755536975153,1e-08,182.51,182.5,55.30917927]
[1755536976866,1e-08,182.54,182.53,15.10621557]
[1755536977037,1e-08,182.56,182.55,26.0]
[1755536977235,1e-08,182.56,182.55,48.4]
[1755536977461,1e-08,182.56,182.55,54.24675565]
[1755536978044,0.06,182.64,182.59,26.0]
[1755536978357,0.06,182.64,182.63,5.78675565]
[1755536978925,0.06,182.64,182.6,31.56666957]
[1755536979173,0.66,182.63,182.6,54.30621557]
[1755536979354,0.66,182.62,182.61,5.78675565]
[1755536979930,0.66,182.62,182.6,11.26308332]
[1755536980125,0.06,182.64,182.6,11.26308332]
[1755536980631,0.66,182.63,182.6,11.26308332]
[1755536980844,0.66,182.62,182.6,11.26308332]
[1755536981138,0.66,182.61,182.6,11.26308332]
[1755536982242,0.66,182.61,182.6,5.47632767]
[1755536982448,0.66,182.61,182.6,11.26308332]
[1755536983777,0.06,182.64,182.6,11.26308332]
[1755536983980,0.06,182.64,182.63,5.78675565]
[1755536984643,0.72,182.64,182.63,5.78675565]
[1755536984837,0.72,182.64,182.62,44.96675565]
[1755536985038,0.66,182.63,182.62,44.96675565]
[1755536985475,0.06,182.64,182.62,44.96675565]
[1755536985673,0.06,182.64,182.63,5.78675565]
[1755536985885,0.06,182.64,182.63,11.26230731]
[1755536988849,0.72,182.64,182.63,5.47555166]
[1755536989785,0.72,182.64,182.6,24.594848]
[1755536989956,6.50675565,182.64,182.6,22.4]
[1755536990155,0.66,182.63,182.6,27.87642928]
[1755536990576,0.66,182.63,182.6,22.4]
[1755536990756,6.44675565,182.63,182.6,22.4]
[1755536990952,0.66,182.62,182.59,5.47671852]
[1755536992466,0.66,182.62,182.58,5.47705115]
[1755536992792,5.78675565,182.63,182.58,11.2638068]
[1755536992952,0.66,182.61,182.58,11.2638068]
[1755536995155,0.06,182.64,182.59,5.78675565]
[1755536995371,0.66,182.63,182.59,5.78675565]
[1755536995673,0.66,182.62,182.59,5.78675565]
[1755536995877,0.66,182.61,182.59,5.78675565]
[1755536996470,5.78675565,182.63,182.58,11.2638068]
[1755536996665,0.66,182.6,182.58,11.2638068]
[1755536996974,0.66,182.62,182.59,5.78675565]
[1755536997171,0.66,182.61,182.57,61.56]
[1755536997353,0.66,182.61,182.57,67.34675565]
[1755536997558,5.78675565,182.6,182.55,5.78675565]
[1755536997879,0.66,182.59,182.56,39.14]
[1755536998068,0.66,182.59,182.56,44.92675565]
[1755536998269,5.78675565,182.61,182.56,44.92675565]
[1755536998468,0.66,182.58,182.56,39.14]
[1755536998672,0.66,182.57,182.56,44.61743197]
[1755536998870,0.66,182.57,182.55,28.18675565]
[1755536998871,0.66,182.57,182.55,27.87792262]
[1755536999075,0.66,182.56,182.55,27.87792262]
[1755536999370,0.66,182.56,182.55,5.47792262]
[1755536999985,3.63261462,182.63,182.55,11.26467827]
[1755536999986,0.66,182.58,182.55,11.26467827]
[1755537000492,0.66,182.61,182.57,5.78675565]
[1755537000700,4.35261462,182.64,182.6,5.78675565]
[1755537000893,0.66,182.63,182.62,5.78675565]
[1755537002074,0.66,182.63,182.61,5.78675565]
[1755537002264,0.06,182.64,182.62,5.78675565]
[1755537002682,0.66,182.63,182.61,11.2626944]
[1755537002874,0.66,182.62,182.61,5.47593875]
[1755537003255,6.44675565,182.62,182.58,22.4]
[1755537003579,6.44675565,182.61,182.56,11.29434131]
[1755537003877,0.66,182.6,182.56,11.29434131]
[1755537004263,0.66,182.59,182.56,11.29434131]
[1755537004464,0.66,182.59,182.56,5.50758566]
[1755537004773,0.66,182.58,182.56,5.50758566]
[1755537005474,0.66,182.6,182.56,11.29434131]
[1755537005793,0.66,182.59,182.56,11.29434131]
[1755537006984,0.66,182.59,182.56,5.81675565]
[1755537007890,0.71,182.58,182.56,0.03]
[1755537008787,0.71,182.57,182.56,0.03]
[1755537009786,6.49675565,182.57,182.56,0.03]
[1755537009984,15.60001548,182.57,182.56,0.03]
[1755537010970,10.12266433,182.57,182.56,0.03]
[1755537011191,3.62590868,182.57,182.56,0.03]
[1755537011486,0.71,182.57,182.56,0.03]
[1755537011698,4.33590868,182.57,182.56,0.03]
[1755537011875,0.71,182.57,182.56,0.03]
[1755537012196,3.62590868,182.57,182.56,0.03]
[1755537012370,3.62590868,182.58,182.56,0.03]
[1755537012574,3.62590868,182.57,182.56,0.03]
[1755537012772,3.62590868,182.58,182.56,0.03]
[1755537012972,0.71,182.6,182.57,5.47735115]
[1755537013298,3.62634725,182.59,182.57,5.47735115]
[1755537013497,3.62634725,182.58,182.57,5.47735115]
[1755537013679,3.62634725,182.58,182.56,11.29433407]
[1755537013873,0.71,182.6,182.56,5.50757842]
[1755537014074,4.33829628,182.59,182.56,5.50757842]
[1755537014289,4.33829628,182.58,182.56,5.50757842]
[1755537014488,4.33829628,182.57,182.56,5.50757842]
[1755537014701,3.62829628,182.57,182.56,5.50757842]
[1755537015173,3.62829628,182.57,182.56,0.03]
[1755537015370,10.12505193,182.57,182.56,0.03]
[1755537016401,3.62829628,182.57,182.56,0.03]
[1755537017306,3.62829628,182.58,182.56,5.81675565]
[1755537017489,4.3454544,182.6,182.57,5.78675565]
[1755537017690,3.6354544,182.59,182.56,5.81675565]
[1755537017893,0.71,182.6,182.56,5.81675565]
[1755537018083,4.34546062,182.59,182.56,5.81675565]
[1755537018283,3.63546329,182.58,182.56,5.81675565]
[1755537018486,6.49675565,182.61,182.56,5.81675565]
[1755537018693,10.13230958,182.6,182.56,0.03]
[1755537018984,3.63555393,182.59,182.56,5.81675565]
[1755537019177,10.13230958,182.58,182.56,0.03]
[1755537019387,3.63485917,182.57,182.56,0.03]
[1755537019583,4.34485917,182.57,182.56,0.03]
[1755537020008,3.63485917,182.57,182.56,0.03]
[1755537020198,3.63485917,182.58,182.56,11.29440683]
[1755537020505,0.71,182.6,182.56,11.29440683]
[1755537020802,3.63487387,182.59,182.58,5.78675565]
[1755537021206,3.63487387,182.59,182.58,26.37002237]
[1755537021503,3.63487387,182.62,182.58,26.43002237]
[1755537021704,0.77,182.64,182.61,5.78675565]
[1755537021885,4.34649571,182.63,182.61,5.78675565]
[1755537022087,3.63649571,182.62,182.61,5.78675565]
[1755537022714,3.63649571,182.62,182.6,5.78675565]
[1755537022879,3.63649571,182.61,182.6,5.78675565]
[1755537023279,3.63649571,182.61,182.6,11.2632069]
[1755537024319,4.34649571,182.61,182.6,5.47645125]
[1755537025608,3.63649571,182.61,182.6,11.2632069]
[1755537025816,3.63649571,182.63,182.61,15.10621557]
[1755537026011,0.06,182.64,182.62,5.84675565]
[1755537026318,0.06,182.64,182.63,5.78675565]
[1755537026516,3.69736814,182.64,182.63,5.78675565]
[1755537026694,3.69736814,182.64,182.61,15.10621557]
[1755537026902,0.71,182.63,182.61,5.78675565]
[1755537027093,0.77,182.64,182.61,5.78675565]
[1755537027690,0.77,182.64,182.62,5.47585149]
[1755537027895,4.34693654,182.63,182.62,5.47585149]
[1755537028295,0.71,182.63,182.62,5.47585149]
[1755537028802,0.06,182.64,182.62,5.47585149]
[1755537029212,0.77,182.64,182.62,5.47585149]
[1755537029996,0.71,182.63,182.62,5.47585149]
[1755537030197,0.06,182.64,182.62,5.47585149]
[1755537030516,0.77,182.64,182.62,5.47585149]
[1755537030718,0.71,182.63,182.62,5.47585149]
[1755537030916,0.06,182.64,182.62,11.26260714]
[1755537031113,0.06,182.64,182.62,5.47585149]
[1755537031313,0.06,182.64,182.62,11.26260714]
[1755537031987,0.06,182.64,182.63,5.78675565]
[1755537032192,3.6983701,182.64,182.63,5.78675565]
[1755537033817,3.6983701,182.64,182.62,5.78675565]
[1755537034120,0.71,182.63,182.61,5.47615136]
[1755537035112,0.71,182.62,182.61,5.47615136]
[1755537035311,0.06,182.64,182.61,11.26290701]
[1755537035520,0.77,182.64,182.61,11.26290701]
[1755537035707,0.71,182.63,182.61,11.26290701]
[1755537036923,0.06,182.64,182.62,5.78675565]
[1755537037095,0.77,182.64,182.62,5.78675565]
[1755537037525,0.77,182.64,182.61,11.26290701]
[1755537037702,0.68,182.63,182.61,5.47615136]
[1755537037910,0.68,182.63,182.61,11.26290701]
[1755537038224,0.06,182.64,182.62,5.78675565]
[1755537038910,0.06,182.64,182.63,5.78675565]
[1755537039100,3.69859583,182.64,182.63,5.78675565]
[1755537039306,0.06,182.64,182.63,43.35297122]
[1755537040022,0.06,182.64,182.63,43.29297122]
[1755537040201,0.06,182.64,182.63,43.35297122]
[1755537041099,0.06,182.66,182.64,15.10621557]
[1755537041309,0.06,182.66,182.65,44.90675565]
[1755537041509,0.06,182.66,182.65,44.96675565]
[1755537042202,0.06,182.66,182.65,50.44170774]
[1755537042812,0.06,182.66,182.65,20.58116766]
[1755537043123,0.06,182.66,182.65,65.48792331]
[1755537044025,0.06,182.66,182.65,50.38170774]
[1755537044205,0.06,182.66,182.65,65.48792331]
[1755537045220,0.06,182.66,182.65,44.59495209]
[1755537045408,0.06,182.66,182.65,65.48792331]
[1755537046308,0.74,182.66,182.65,65.48792331]
[1755537046617,0.74,182.66,182.65,44.59495209]
[1755537046825,0.74,182.66,182.65,5.47495209]
[1755537047125,0.74,182.66,182.64,44.57520305]
[1755537047328,0.68,182.65,182.64,44.57520305]
[1755537047827,0.68,182.65,182.64,39.1]
[1755537048007,10.10266415,182.65,182.62,5.47578362]
[1755537048201,9.42266415,182.65,182.62,5.47578362]
[1755537048402,0.68,182.64,182.61,44.57607499]
[1755537048609,0.68,182.63,182.61,44.57607499]
[1755537048821,3.6359085,182.65,182.61,50.36283064]
[1755537049011,0.68,182.64,182.61,50.36283064]
[1755537049208,0.68,182.63,182.61,44.57607499]
[1755537050107,0.68,182.63,182.61,44.60607499]
[1755537050425,0.06,182.66,182.62,20.95297122]
[1755537050635,0.06,182.66,182.65,20.89297122]
[1755537050928,0.06,182.66,182.65,59.99297122]
[1755537051919,0.06,182.66,182.65,65.46792331]
[1755537052321,1e-08,182.66,182.65,65.52792331]
[1755537053338,1e-08,182.66,182.65,26.36792331]
[1755537053639,1e-08,182.66,182.65,65.46792331]
[1755537054523,1e-08,182.66,182.65,65.52792331]
[1755537054738,1e-08,182.68,182.67,15.10621557]
[1755537054913,1e-08,182.68,182.67,85.99297122]
[1755537055112,0.06,182.72,182.71,41.10621557]
[1755537055320,0.06,182.72,182.71,85.99297122]
[1755537055947,0.06,182.72,182.71,85.67936974]
[1755537056120,0.06,182.72,182.71,91.46612539]
[1755537056444,0.74,182.72,182.71,44.57315417]
[1755537056940,0.74,182.72,182.71,50.35990982]
[1755537057738,0.06,182.72,182.71,50.35990982]
[1755537058039,0.06,182.72,182.71,65.46612539]
[1755537058632,0.06,182.72,182.71,87.86612539]
[1755537058814,0.74,182.72,182.71,72.75990982]
[1755537059019,0.74,182.72,182.71,66.97315417]
[1755537060315,0.06,182.72,182.71,72.75990982]
[1755537061831,0.74,182.72,182.71,66.97315417]
[1755537062150,0.74,182.72,182.71,72.75990982]
[1755537062828,0.74,182.72,182.71,66.97315417]
[1755537063228,0.06,182.72,182.71,87.86612539]
[1755537064755,0.06,182.74,182.72,15.10621557]
[1755537064948,0.06,182.74,182.73,65.44552635]
[1755537065147,0.06,182.74,182.73,5.47255513]
[1755537065358,0.74,182.74,182.73,50.33931078]
[1755537067618,0.06,182.74,182.73,65.44552635]
[1755537068060,0.06,182.74,182.73,44.55255513]
[1755537068271,0.06,182.74,182.73,11.25931078]
[1755537068272,0.76,182.74,182.73,11.25931078]
[1755537068439,0.06,182.74,182.73,50.33931078]
[1755537068634,0.06,182.74,182.73,11.25931078]
[1755537068846,0.06,182.74,182.73,50.33931078]
[1755537070841,0.76,182.74,182.73,11.25931078]
[1755537071369,0.76,182.74,182.73,50.33931078]
[1755537072276,0.06,182.74,182.73,50.33931078]
[1755537072959,0.06,182.74,182.73,87.90552635]
[1755537073160,0.06,182.74,182.73,87.84552635]
[1755537075070,0.06,182.74,182.73,87.90552635]
[1755537075569,0.06,182.76,182.74,41.10621557]
[1755537075773,0.06,182.78,182.76,15.10621557]
[1755537075976,0.06,182.78,182.77,59.95297122]
[1755537076351,0.06,182.78,182.77,60.01297122]
[1755537076550,0.06,182.78,182.77,59.95297122]
[1755537077047,0.06,182.78,182.77,65.42432866]
[1755537077243,1e-08,182.78,182.77,85.69757301]
[1755537077444,1e-08,182.78,182.77,91.48432866]
[1755537077684,0.1,182.82,182.8,41.10621557]
[1755537077847,0.1,182.82,182.8,108.35297122]
[1755537078049,0.1,182.82,182.8,102.56621557]
[1755537078250,0.1,182.82,182.8,108.35297122]
[1755537078668,0.1,182.82,182.8,108.41297122]
[1755537079273,0.1,182.82,182.8,108.03667508]
[1755537079484,0.1,182.82,182.8,113.82343073]
[1755537080059,1e-08,182.82,182.8,113.88343073]
[1755537080267,1e-08,182.82,182.81,20.89297122]
[1755537081479,1e-08,182.82,182.81,26.36313149]
[1755537081774,1e-08,182.82,182.81,65.42313149]
[1755537083562,1e-08,182.82,182.81,59.63637584]
[1755537083763,1e-08,182.82,182.81,65.42313149]
[1755537084562,0.06,182.86,182.84,15.10621557]
[1755537084772,0.06,182.86,182.85,59.93297122]
[1755537085068,0.76,182.86,182.85,54.14621557]
[1755537086479,0.76,182.86,182.85,59.6151792]
[1755537086773,0.06,182.86,182.85,65.40193485]
[1755537086960,0.76,182.86,182.85,82.0151792]
[1755537088190,0.76,182.86,182.85,27.86896363]
[1755537088573,0.76,182.86,182.85,66.90896363]
[1755537088979,0.76,182.86,182.85,27.86896363]
[1755537089687,0.76,182.86,182.85,66.90896363]
[1755537089863,0.06,182.86,182.85,87.80193485]
[1755537091077,0.06,182.86,182.85,82.0151792]
[1755537091279,0.7,182.9,182.86,15.10621557]
[1755537091569,0.7,182.9,182.87,44.82675565]
[1755537091766,5.78675565,182.92,182.88,5.46806649]
[1755537092093,0.7,182.91,182.89,54.14621557]
[1755537092765,0.7,182.9,182.89,54.14621557]
[1755537093192,0.7,182.9,182.89,59.61398308]
[1755537093404,0.7,182.9,182.89,44.50776751]
[1755537093872,0.1,182.93,182.89,44.50776751]
[1755537093873,0.7,182.92,182.9,15.10621557]
[1755537094192,0.7,182.92,182.91,54.12621557]
[1755537094972,0.7,182.92,182.91,59.59338521]
[1755537095389,0.1,182.93,182.91,59.59338521]
[1755537095603,0.8,182.93,182.91,59.59338521]
[1755537096301,0.8,182.93,182.92,15.10621557]
[1755537096484,0.1,182.93,182.92,20.89297122]
[1755537096871,0.1,182.93,182.92,26.35984198]
[1755537097579,0.06,182.97,182.94,5.78675565]
[1755537097884,0.76,182.97,182.95,39.02]
[1755537098276,0.76,182.97,182.96,15.10621557]
[1755537098473,0.06,182.97,182.96,15.10621557]
[1755537098896,0.06,182.97,182.96,20.89297122]
[1755537099093,1e-08,182.97,182.96,52.41864677]
[1755537099597,1e-08,182.99,182.98,41.10621557]
[1755537099803,1e-08,182.99,182.98,85.91297122]
[1755537100490,1e-08,182.99,182.98,46.89297122]
[1755537100673,1e-08,182.99,182.98,85.91297122]
[1755537101090,1e-08,182.99,182.98,91.37804937]
[1755537101282,1e-08,182.99,182.98,52.35804937]
[1755537101483,1e-08,182.99,182.98,91.37804937]
[1755537101701,1e-08,182.99,182.98,91.43804937]
[1755537102099,1e-08,182.99,182.98,91.37804937]
[1755537102985,1e-08,182.99,182.98,52.35804937]
[1755537103215,1e-08,182.99,182.98,91.35804937]
[1755537104539,1e-08,182.99,182.98,91.41804937]
[1755537105641,0.7,183.13,183.12,15.10621557]
[1755537105846,0.7,183.15,183.12,59.89297122]
[1755537106138,0.7,183.17,183.14,5.78675565]
[1755537106318,3.61261318,183.18,183.15,44.78675565]
[1755537106639,5.78675565,183.17,183.15,39.0]
[1755537106851,5.78675565,183.16,183.11,26.0]
[1755537107035,5.78675565,183.14,183.12,5.46089995]
[1755537107231,0.7,183.13,183.11,59.56738943]
[1755537107543,0.7,183.13,183.11,44.46118117]
[1755537108940,0.7,183.13,183.11,39.0]
[1755537109113,9.05521231,183.12,183.1,38.98]
[1755537109427,9.75521231,183.11,183.07,15.10621557]
[1755537109730,9.75521231,183.1,183.08,38.98]
[1755537109912,0.7,183.09,183.08,38.98]
[1755537110325,0.7,183.11,183.08,38.98]
[1755537110611,0.7,183.1,183.07,5.46212451]
[1755537110812,0.7,183.1,183.08,38.98]
[1755537111029,9.75521231,183.1,183.08,38.98]
[1755537111341,9.75521231,183.09,183.08,44.44209307]
[1755537111507,0.7,183.09,183.08,44.44209307]
[1755537112328,0.7,183.12,183.09,15.10621557]
[1755537112532,0.7,183.11,183.1,38.98]
[1755537113348,9.75521231,183.11,183.1,38.98]
[1755537114508,3.61261318,183.16,183.11,15.10621557]
[1755537114712,0.7,183.18,183.15,9.05521231]
[1755537115024,0.7,183.18,183.16,9.05521231]
[1755537115340,0.06,183.2,183.17,5.45940929]
[1755537115508,0.7,183.19,183.17,53.5546216]
[1755537116225,0.7,183.19,183.17,44.49940929]
[1755537116550,0.06,183.2,183.17,53.5546216]
[1755537117146,0.76,183.2,183.17,53.5546216]
[1755537117350,0.76,183.2,183.17,44.49940929]
[1755537117525,0.7,183.19,183.17,44.49940929]
[1755537117710,0.7,183.19,183.17,53.5546216]
[1755537118880,0.7,183.18,183.17,53.5546216]
[1755537119247,4.37261318,183.2,183.17,53.5546216]
[1755537119447,0.7,183.19,183.17,53.5546216]
[1755537119673,0.7,183.18,183.17,39.04]
[1755537120056,0.7,183.18,183.16,44.43963998]
[1755537120364,0.7,183.17,183.16,38.98]
[1755537120552,0.7,183.17,183.16,44.43970735]
[1755537120766,0.7,183.19,183.16,44.43970735]
[1755537120962,0.7,183.18,183.16,53.49491966]
[1755537121182,3.6032909,183.19,183.17,9.05521231]
[1755537121485,4.30358729,183.19,183.18,5.45911125]
[1755537121652,4.30358729,183.19,183.17,5.45934204]
[1755537121851,0.7,183.18,183.16,48.03521231]
[1755537122864,0.7,183.17,183.16,38.98]
[1755537123060,0.7,183.17,183.15,38.96]
[1755537123265,0.7,183.19,183.15,48.01521231]
[1755537123570,0.7,183.18,183.15,48.01521231]
[1755537123885,0.7,183.17,183.15,38.96]
[1755537124249,0.7,183.16,183.15,38.96]
[1755537124449,9.75521231,183.16,183.06,13.65631495]
[1755537124649,9.05521231,183.07,183.05,5.46298825]
[1755537124880,9.05521231,183.08,183.06,38.96]
[1755537125067,0.7,183.09,183.06,38.96]
[1755537125651,9.75521231,183.09,183.06,38.96]
[1755537125857,0.7,183.08,183.06,38.96]
[1755537126052,9.75521231,183.09,183.06,38.96]
[1755537126264,0.7,183.08,183.06,38.96]
[1755537126479,9.75521231,183.07,183.06,38.96]
[1755537126686,9.05521231,183.07,183.04,39.0]
[1755537126961,8.14986533,183.12,183.04,39.0]
[1755537126962,9.75521231,183.06,183.04,39.0]
[1755537127406,9.75521231,183.06,183.04,44.46313552]
[1755537127685,3.60095321,183.09,183.05,9.05521231]
[1755537127972,3.60095321,183.09,183.04,44.46313552]
[1755537127973,12.65616552,183.08,183.04,44.46313552]
[1755537128179,0.69,183.09,183.04,44.46313552]
[1755537128380,9.05521231,183.06,183.05,39.0]
[1755537128602,9.74521231,183.06,183.05,39.0]
[1755537128799,0.69,183.06,183.05,44.46298825]
[1755537128964,9.74521231,183.08,183.05,44.46298825]
[1755537129299,0.69,183.07,183.05,44.46298825]
[1755537129586,0.69,183.06,183.05,44.46298825]
[1755537129887,9.74521231,183.06,183.05,39.0]
[1755537130087,9.74521231,183.06,183.03,5.46357292]
[1755537130293,4.29860529,183.08,183.03,44.44357292]
[1755537130470,9.74521231,183.08,183.03,44.44357292]
[1755537130995,3.60883373,183.07,183.03,44.44357292]
[1755537131208,0.69,183.06,183.03,44.44357292]
[1755537131365,9.05521231,183.07,183.03,44.44357292]
[1755537131366,9.74521231,183.08,183.03,44.44357292]
[1755537131567,10.00959287,183.12,183.03,44.44357292]
[1755537131793,10.00959287,183.12,183.04,24.16142788]
[1755537131794,9.05521231,183.09,183.04,24.16142788]
[1755537131987,9.05521231,183.09,183.05,39.0]
[1755537132165,4.30106883,183.08,183.05,39.0]
[1755537132361,0.69,183.08,183.05,39.0]
[1755537132796,9.05521231,183.09,183.05,39.0]
[1755537132967,0.69,183.1,183.06,5.46268982]
[1755537132968,9.74521231,183.1,183.06,5.46268982]
[1755537133171,13.35862751,183.09,183.06,5.46268982]
[1755537133374,3.6134152,183.08,183.06,5.46268982]
[1755537133596,0.69,183.08,183.06,5.46268982]
[1755537133783,9.74521231,183.07,183.05,44.46290691]
[1755537134087,0.69,183.06,183.05,44.46290691]
[1755537134287,9.74521231,183.06,183.05,39.0]
[1755537134495,13.36351497,183.06,183.05,39.0]
[1755537135406,13.36351497,183.06,183.05,44.46298825]
[1755537135776,3.61830266,183.06,183.05,44.46298825]
[1755537135977,0.69,183.08,183.05,44.46298825]
[1755537136200,31.46068684,183.13,183.05,44.46298825]
[1755537136201,3.62216607,183.07,183.05,44.46298825]
[1755537136504,9.05521231,183.09,183.05,44.46298825]
[1755537136718,3.6260247,183.08,183.05,44.46298825]
[1755537136884,0.69,183.1,183.05,53.51820056]
[1755537137075,3.62602433,183.09,183.05,53.51820056]
[1755537137273,3.62602433,183.08,183.05,53.51820056]
[1755537137501,9.74521231,183.1,183.05,53.51820056]
[1755537137685,3.62872526,183.09,183.06,15.10621557]
[1755537137882,3.62872526,183.08,183.07,38.98]
[1755537138973,3.62872526,183.08,183.07,44.44239143]
[1755537139275,3.62872526,183.08,183.07,91.06381931]
[1755537139471,14.29383511,183.13,183.07,91.06381931]
[1755537139472,9.74521231,183.13,183.07,91.06381931]
[1755537139693,3.63607302,183.12,183.08,9.05521231]
[1755537139893,3.63607302,183.11,183.09,38.98]
[1755537140087,13.38128533,183.1,183.09,38.98]
[1755537140285,13.38128533,183.1,183.07,27.86239143]
[1755537140497,10.00933339,183.13,183.07,27.86239143]
[1755537140498,9.05521231,183.08,183.07,66.84239143]
[1755537140709,4.32607302,183.08,183.07,44.44239143]
[1755537141112,3.63607302,183.08,183.07,44.44239143]
[1755537141692,3.63607302,183.08,183.06,5.46266466]
[1755537141890,13.38128533,183.07,183.0,5.46448087]
[1755537142095,9.05521231,183.04,183.01,54.08621557]
[1755537142405,10.08823191,183.03,183.01,54.08621557]
[1755537142586,3.64463441,183.02,183.01,54.08621557]
[1755537142980,5.7535975,183.04,183.01,54.08621557]
[1755537143184,3.6444563,183.03,183.02,5.46388372]
[1755537143798,4.3344563,183.03,183.02,5.46388372]
[1755537143994,10.0880538,183.03,183.02,5.46388372]
[1755537144206,4.3344563,183.03,183.02,5.46388372]
[1755537144399,13.39989287,183.03,183.01,44.44410052]
[1755537144605,0.69,183.03,183.01,44.44410052]
[1755537145501,9.06543657,183.05,183.01,44.44410052]
[1755537145687,3.64873584,183.04,183.02,24.17165214]
[1755537145892,0.69,183.06,183.03,38.98]
[1755537146110,3.64900565,183.05,183.03,38.98]
[1755537146416,9.06543657,183.08,183.03,38.98]
[1755537146615,3.64936482,183.07,183.03,38.98]
[1755537146810,3.64936482,183.06,183.03,38.98]
[1755537147013,3.64936482,183.05,183.03,38.98]
[1755537147216,9.75543657,183.08,183.04,5.46328671]
[1755537147415,4.33967055,183.07,183.05,38.98]
[1755537147716,3.64967055,183.06,183.05,38.98]
[1755537147921,4.33967055,183.06,183.05,38.98]
[1755537149429,13.40510712,183.06,183.05,38.98]
[1755537150902,13.40510712,183.06,183.02,5.46378998]
[1755537151111,13.40510712,183.05,183.03,38.98]
[1755537151303,0.69,183.04,183.03,38.98]
[1755537152696,9.75543657,183.04,183.03,38.98]
[1755537153504,9.06543657,183.05,183.03,44.4435852]
[1755537154005,0.69,183.06,183.03,44.4435852]
[1755537154207,9.75543657,183.06,183.03,44.4435852]
[1755537154807,9.06543657,183.04,183.03,38.98]
[1755537155005,9.06543657,183.04,183.01,5.46410749]
[1755537155210,0.69,183.03,183.02,38.98]
[1755537155822,9.75543657,183.03,183.02,38.98]
[1755537156823,0.69,183.03,183.02,38.98]
[1755537157120,9.06543657,183.04,183.02,44.44388372]
[1755537157328,9.75543657,183.04,183.02,44.44388372]
[1755537157945,3.64900797,183.06,183.02,44.44388372]
[1755537158122,9.06543657,183.06,183.02,44.44388372]
[1755537158324,9.73543657,183.06,183.02,44.44388372]
[1755537158709,3.64900797,183.08,183.02,53.50932029]
[1755537158916,0.06,183.08,183.04,24.17165214]
[1755537159229,3.70900797,183.08,183.05,38.98]
[1755537159443,0.06,183.08,183.05,38.98]
[1755537160138,0.06,183.08,183.05,48.04543657]
[1755537160302,0.06,183.08,183.05,70.44543657]
[1755537160736,0.06,183.08,183.06,5.46268982]
[1755537160913,0.06,183.08,183.07,38.98]
[1755537161727,0.06,183.08,183.07,85.61165214]
[1755537162720,0.06,183.08,183.07,91.07404357]
[1755537164018,0.06,183.08,183.07,91.01404357]
[1755537166340,0.06,183.1,183.09,41.10621557]
[1755537166532,0.06,183.1,183.09,85.83177919]
[1755537166735,0.06,183.1,183.09,85.89177919]
[1755537167046,0.06,183.1,183.09,91.35357393]
[1755537167822,0.06,183.14,183.09,91.35357393]
[1755537168024,0.06,183.14,183.13,5.74556362]
[1755537168264,0.06,183.14,183.13,44.70556362]
[1755537168634,0.06,183.14,183.13,82.21177919]
[1755537169252,0.06,183.14,183.13,87.67238094]
[1755537169530,0.73,183.14,183.13,59.52681732]
[1755537170531,0.06,183.14,183.13,65.27238094]
[1755537173641,0.06,183.14,183.13,67.46074394]